[Event "GER-ch Blitz 2019"]
[Site "Magdeburg"]
[Date "2019.05.25"]
[Round "15.7"]
[White "Ehmann, Thilo"]
[Black "Krause, Benedict"]
[Result "1/2-1/2"]
[ECO "B40"]
[WhiteElo "2291"]
[BlackElo "2434"]
[Annotator "NA"]
[PlyCount "54"]
[EventDate "2019.05.25"]
[EventType "tourn"]
[EventCountry "GER"]
[Tiebreak "Number of wins+Number of black wins"]
[SourceTitle "playchess.com"]
[Source "ChessBase"]
[SourceQuality "1"]
[TimeControl "180+2"]

1. e4 {[%emt 0:00:00]} c5 {[%emt 0:00:00]} 2. Nf3 {[%emt 0:00:00]} e6 {[%emt 0:
00:00]} 3. g3 {[%emt 0:00:03]} d5 {[%emt 0:00:01]} 4. exd5 {[%emt 0:00:06]}
exd5 {[%emt 0:00:01]} 5. d4 {[%emt 0:00:07]} Nf6 {[%emt 0:00:01]} 6. Bg2 {
[%emt 0:00:01]} Be7 {[%emt 0:00:05]} 7. O-O {[%emt 0:00:03]} O-O {[%emt 0:00:
05]} 8. dxc5 {[%emt 0:00:08]} Bxc5 {[%emt 0:00:03]} 9. Nbd2 {[%emt 0:00:01]}
Nc6 {[%emt 0:00:05]} 10. Nb3 {[%emt 0:00:00]} Bb6 {[%emt 0:00:01]} 11. c3 {
[%emt 0:00:12]} h6 {[%emt 0:00:04]} 12. Nfd4 {[%emt 0:00:02]} Bg4 {[%emt 0:00:
04]} 13. Bf3 {[%emt 0:00:12]} Bxf3 {[%emt 0:00:17]} 14. Qxf3 {[%emt 0:00:01]}
Nxd4 {[%emt 0:00:03]} 15. Nxd4 {[%emt 0:00:03]} Bxd4 {[%emt 0:00:02]} 16. cxd4
{[%emt 0:00:00]} Ne4 {[%emt 0:00:05]} 17. Qd3 {[%emt 0:00:05]} Qb6 {[%emt 0:00:
04]} 18. f3 {[%emt 0:00:05]} Nd6 {[%emt 0:00:03]} 19. b3 {[%emt 0:00:01]} Rfe8
{[%emt 0:00:11]} 20. Be3 {[%emt 0:00:10]} Re6 {[%emt 0:00:19]} 21. Bf2 {
[%emt 0:00:11]} Rae8 {[%emt 0:00:02]} 22. Rfe1 {[%emt 0:00:11]} Rxe1+ {[%emt 0:
00:35]} 23. Rxe1 {[%emt 0:00:10]} Rxe1+ {[%emt 0:00:05]} 24. Bxe1 {[%emt 0:00:
01]} Qb5 {[%emt 0:00:01]} 25. Qd2 {[%emt 0:00:09]} Qd7 {[%emt 0:00:19]} 26. g4
{[%emt 0:00:01]} Qe6 {[%emt 0:00:14]} 27. Bg3 {[%emt 0:00:07]} Nb5 {[%emt 0:00:
16]} 1/2-1/2

[Event "GER-ch Blitz 2019"]
[Site "Magdeburg"]
[Date "2019.05.25"]
[Round "15.8"]
[White "Schneider, Ilja"]
[Black "Kopylov, Michael"]
[Result "1-0"]
[ECO "D30"]
[WhiteElo "2494"]
[BlackElo "2413"]
[Annotator "ChessBase"]
[PlyCount "105"]
[EventDate "2019.05.25"]
[EventType "tourn"]
[EventCountry "GER"]
[Tiebreak "Number of wins+Number of black wins"]
[SourceTitle "playchess.com"]
[Source "ChessBase"]
[SourceQuality "1"]
[TimeControl "180+2"]

1. d4 {[%emt 0:00:02]} d5 {[%emt 0:00:00]} 2. c4 {[%emt 0:00:00]} e6 {[%emt 0:
00:00]} 3. Nf3 {[%emt 0:00:01]} c6 {[%emt 0:00:01]} 4. e3 {[%emt 0:00:03]} Nf6
{[%emt 0:00:02]} 5. b3 {[%emt 0:00:05]} Nbd7 {[%emt 0:00:02]} 6. Bd3 {[%emt 0:
00:03]} b6 {[%emt 0:00:04]} 7. O-O {[%emt 0:00:02]} Bb7 {[%emt 0:00:01]} 8. Bb2
{[%emt 0:00:01]} Bd6 {[%emt 0:00:07]} 9. Nbd2 {[%emt 0:00:09]} O-O {[%emt 0:00:
03]} 10. Qe2 {[%emt 0:00:01]} Qe7 {[%emt 0:00:01]} 11. Rfd1 {[%emt 0:00:13]} c5
{[%emt 0:00:03]} 12. e4 {[%emt 0:00:14]} dxe4 {[%emt 0:00:12]} 13. Nxe4 {
[%emt 0:00:02]} Nxe4 {[%emt 0:00:04]} 14. Bxe4 {[%emt 0:00:01]} Nf6 {[%emt 0:
00:19]} 15. Bxb7 Qxb7 {[%emt 0:00:01]} 16. d5 {[%emt 0:00:10]} Qe7 {[%emt 0:01:
05]} 17. dxe6 fxe6 {[%emt 0:00:02]} 18. Ng5 {[%emt 0:00:06]} Rae8 {[%emt 0:00:
05]} 19. Rd3 {[%emt 0:00:14]} Bf4 {[%emt 0:00:19]} 20. Ne4 {[%emt 0:00:15]}
Nxe4 {[%emt 0:00:05]} 21. Qxe4 {[%emt 0:00:01]} Qh4 {[%emt 0:00:02]} 22. g3 {
[%emt 0:00:19]} Bxg3 {[%emt 0:00:04]} 23. Rxg3 {[%emt 0:00:02]} Qxe4 {[%emt 0:
00:15]} 24. Rxg7+ {[%emt 0:00:00]} Kh8 {[%emt 0:00:00]} 25. Rg4+ {[%emt 0:00:
01]} Qd4 {[%emt 0:00:04]} 26. Bxd4+ {[%emt 0:00:01]} cxd4 {[%emt 0:00:01]} 27.
Rxd4 {[%emt 0:00:00]} Rd8 {[%emt 0:00:24]} 28. Rad1 {[%emt 0:00:03]} Rxd4 {
[%emt 0:00:00]} 29. Rxd4 {[%emt 0:00:00]} Rf7 {[%emt 0:00:01]} 30. Kg2 {
[%emt 0:00:02]} Kg7 {[%emt 0:00:00]} 31. Kg3 {[%emt 0:00:04]} Rc7 {[%emt 0:00:
09]} 32. Kf4 {[%emt 0:00:10]} Kf6 {[%emt 0:00:00]} 33. Ke4 {[%emt 0:00:02]} Rg7
{[%emt 0:00:04]} 34. Kf3 {[%emt 0:00:11]} Ke5 {[%emt 0:00:04]} 35. Ke3 {
[%emt 0:00:07]} Kf5 36. b4 {[%emt 0:00:09]} Ke5 {[%emt 0:00:23]} 37. Rh4 {
[%emt 0:00:03]} Kf5 {[%emt 0:00:02]} 38. c5 {[%emt 0:00:07]} bxc5 {[%emt 0:00:
01]} 39. bxc5 {[%emt 0:00:01]} Rd7 {[%emt 0:00:02]} 40. c6 {[%emt 0:00:06]} Rc7
{[%emt 0:00:00]} 41. Rh5+ {[%emt 0:00:02]} Kf6 {[%emt 0:00:03]} 42. Rc5 {
[%emt 0:00:01]} Ke7 {[%emt 0:00:02]} 43. h4 {[%emt 0:00:05]} Kd6 {[%emt 0:00:
01]} 44. Kd4 {[%emt 0:00:01]} Rxc6 45. Rxc6+ {[%emt 0:00:01]} Kxc6 {[%emt 0:00:
04]} 46. Ke5 Kd7 47. Kf6 {[%emt 0:00:04]} Kd6 {[%emt 0:00:02]} 48. h5 {[%emt 0:
00:02]} e5 {[%emt 0:00:03]} 49. Kg7 {[%emt 0:00:07]} Ke6 {[%emt 0:00:06]} 50.
Kxh7 {[%emt 0:00:01]} Kf7 {[%emt 0:00:00]} 51. Kh6 {[%emt 0:00:10]} Kf6 {
[%emt 0:00:00]} 52. f3 {[%emt 0:00:06]} a6 {[%emt 0:00:03]} 53. a3 {[%emt 0:00:
00]} 1-0

[Event "GER-ch Blitz 2019"]
[Site "Magdeburg"]
[Date "2019.05.25"]
[Round "15.9"]
[White "Kirchner, Thomas"]
[Black "Carow, Johannes"]
[Result "0-1"]
[ECO "B14"]
[WhiteElo "2311"]
[BlackElo "2445"]
[Annotator "NA"]
[PlyCount "36"]
[EventDate "2019.05.25"]
[EventType "tourn"]
[EventCountry "GER"]
[Tiebreak "Number of wins+Number of black wins"]
[SourceTitle "playchess.com"]
[Source "ChessBase"]
[SourceQuality "1"]
[TimeControl "180+2"]

1. e4 {[%emt 0:00:00]} c6 {[%emt 0:00:00]} 2. d4 {[%emt 0:00:00]} d5 {[%emt 0:
00:00]} 3. exd5 {[%emt 0:00:00]} cxd5 {[%emt 0:00:01]} 4. c4 {[%emt 0:00:00]}
Nf6 {[%emt 0:00:02]} 5. Nc3 {[%emt 0:00:01]} g6 {[%emt 0:00:22]} 6. Nf3 {
[%emt 0:00:12]} Bg7 {[%emt 0:00:01]} 7. cxd5 {[%emt 0:00:01]} Nxd5 {[%emt 0:00:
01]} 8. Bc4 {[%emt 0:00:12]} Nxc3 {[%emt 0:00:13]} 9. bxc3 {[%emt 0:00:02]} O-O
{[%emt 0:00:02]} 10. O-O {[%emt 0:00:01]} Qc7 {[%emt 0:00:14]} 11. Qb3 {
[%emt 0:00:04]} Nc6 {[%emt 0:00:05]} 12. Bd3 {[%emt 0:00:11]} Be6 {[%emt 0:00:
17]} 13. Qc2 {[%emt 0:00:07]} Rac8 {[%emt 0:00:06]} 14. Qd2 {[%emt 0:00:23]}
Na5 {[%emt 0:00:20]} 15. Bb2 {[%emt 0:00:04]} Nc4 {[%emt 0:00:10]} 16. Bxc4 {
[%emt 0:00:03]} Bxc4 {[%emt 0:00:02]} 17. Rfe1 {[%emt 0:00:01]} Rfd8 {[%emt 0:
00:13]} 18. Ne5 {[%emt 0:00:02]} Bxe5 {[%emt 0:00:03]} 0-1

[Event "GER-ch Blitz 2019"]
[Site "Magdeburg"]
[Date "2019.05.25"]
[Round "15.10"]
[White "Schulz, Karsten"]
[Black "Heidrich, Manfred"]
[Result "1/2-1/2"]
[ECO "A04"]
[WhiteElo "2227"]
[BlackElo "2351"]
[Annotator "NA"]
[PlyCount "111"]
[EventDate "2019.05.25"]
[EventType "tourn"]
[EventCountry "GER"]
[Tiebreak "Number of wins+Number of black wins"]
[SourceTitle "playchess.com"]
[Source "ChessBase"]
[SourceQuality "1"]
[TimeControl "180+2"]

1. Nf3 {[%emt 0:00:00]} f5 {[%emt 0:00:00]} 2. g3 {[%emt 0:00:00]} Nf6 {
[%emt 0:00:00]} 3. Bg2 {[%emt 0:00:01]} g6 {[%emt 0:00:00]} 4. c4 {[%emt 0:00:
03]} Bg7 {[%emt 0:00:02]} 5. Nc3 {[%emt 0:00:01]} d6 {[%emt 0:00:03]} 6. d3 {
[%emt 0:00:03]} O-O {[%emt 0:00:01]} 7. O-O {[%emt 0:00:02]} c5 {[%emt 0:00:03]
} 8. Rb1 {[%emt 0:00:02]} Nc6 {[%emt 0:00:01]} 9. a3 {[%emt 0:00:01]} a5 {
[%emt 0:00:01]} 10. Bg5 {[%emt 0:00:11]} h6 {[%emt 0:00:11]} 11. Bxf6 {[%emt 0:
00:01]} Bxf6 {[%emt 0:00:01]} 12. Nd5 {[%emt 0:00:04]} e6 {[%emt 0:00:03]} 13.
Nxf6+ {[%emt 0:00:06]} Qxf6 {[%emt 0:00:01]} 14. Qd2 {[%emt 0:00:01]} Kg7 {
[%emt 0:00:04]} 15. e3 {[%emt 0:00:02]} e5 {[%emt 0:00:17]} 16. Ne1 {[%emt 0:
00:06]} f4 {[%emt 0:00:07]} 17. Qc3 {[%emt 0:00:19]} Bd7 {[%emt 0:00:08]} 18.
Be4 {[%emt 0:00:36]} Bh3 {[%emt 0:00:07]} 19. exf4 {[%emt 0:00:13]} Bxf1 {
[%emt 0:00:05]} 20. Kxf1 {[%emt 0:00:04]} exf4 {[%emt 0:00:03]} 21. Nf3 {
[%emt 0:00:07]} Rae8 {[%emt 0:00:09]} 22. Qxf6+ {[%emt 0:00:06]} Rxf6 {[%emt 0:
00:04]} 23. Kg2 {[%emt 0:00:02]} Rf7 {[%emt 0:00:07]} 24. g4 {[%emt 0:00:18]}
Rb8 {[%emt 0:00:13]} 25. h4 {[%emt 0:00:06]} a4 {[%emt 0:00:19]} 26. Rd1 {
[%emt 0:00:12]} Rc7 {[%emt 0:00:05]} 27. Rd2 b5 {[%emt 0:00:06]} 28. cxb5 {
[%emt 0:00:19]} Rxb5 {[%emt 0:00:00]} 29. d4 {[%emt 0:00:01]} cxd4 {[%emt 0:00:
04]} 30. Nxd4 {[%emt 0:00:02]} Nxd4 {[%emt 0:00:05]} 31. Rxd4 {[%emt 0:00:01]}
Rxb2 {[%emt 0:00:11]} 32. Rxd6 {[%emt 0:00:09]} g5 {[%emt 0:00:03]} 33. Rg6+ {
[%emt 0:00:04]} Kf7 {[%emt 0:00:02]} 34. Rxh6 {[%emt 0:00:05]} Rc3 {[%emt 0:00:
18]} 35. hxg5 {[%emt 0:00:05]} Rg3+ {[%emt 0:00:02]} 36. Kf1 {[%emt 0:00:02]}
Rxg4 {[%emt 0:00:01]} 37. g6+ {[%emt 0:00:03]} Kg8 {[%emt 0:00:03]} 38. Rh7 {
[%emt 0:00:10]} Rg5 {[%emt 0:00:05]} 39. Ra7 {[%emt 0:00:08]} Re5 {[%emt 0:00:
18]} 40. Ra8+ {[%emt 0:00:06]} Kg7 {[%emt 0:00:01]} 41. Ra7+ {[%emt 0:00:02]}
Kg8 {[%emt 0:00:03]} 42. Bd3 {[%emt 0:00:06]} Rc5 {[%emt 0:00:10]} 43. Kg2 {
[%emt 0:00:05]} Rc3 {[%emt 0:00:02]} 44. Be4 {[%emt 0:00:01]} Rd2 {[%emt 0:00:
05]} 45. Rxa4 {[%emt 0:00:04]} Kg7 {[%emt 0:00:18]} 46. Ra7+ {[%emt 0:00:01]}
Kg8 {[%emt 0:00:01]} 47. Ra5 {[%emt 0:00:02]} Kg7 {[%emt 0:00:01]} 48. Ra7+ {
[%emt 0:00:01]} Kg8 {[%emt 0:00:00]} 49. Rf7 {[%emt 0:00:01]} Rxa3 {[%emt 0:00:
04]} 50. Rxf4 {[%emt 0:00:01]} Ra7 {[%emt 0:00:02]} 51. Rf6 {[%emt 0:00:04]}
Kg7 {[%emt 0:00:01]} 52. Rc6 {[%emt 0:00:02]} Rd4 {[%emt 0:00:04]} 53. f3 {
[%emt 0:00:01]} Re7 {[%emt 0:00:02]} 54. Kg3 {[%emt 0:00:06]} Rdxe4 {[%emt 0:
00:01]} 55. fxe4 {[%emt 0:00:01]} Rxe4 {[%emt 0:00:00]} 56. Rc7+ 1/2-1/2

[Event "GER-ch Blitz 2019"]
[Site "Magdeburg"]
[Date "2019.05.25"]
[Round "15.11"]
[White "Svane, Frederik"]
[Black "Stern, Rene"]
[Result "0-1"]
[ECO "C67"]
[WhiteElo "2342"]
[BlackElo "2538"]
[Annotator "ChessBase"]
[PlyCount "106"]
[EventDate "2019.05.25"]
[EventType "tourn"]
[EventCountry "GER"]
[Tiebreak "Number of wins+Number of black wins"]
[SourceTitle "playchess.com"]
[Source "ChessBase"]
[SourceQuality "1"]
[TimeControl "180+2"]

1. e4 {[%emt 0:00:00]} e5 {[%emt 0:00:00]} 2. Nf3 {[%emt 0:00:01]} Nc6 {
[%emt 0:00:00]} 3. Bb5 {[%emt 0:00:01]} Nf6 {[%emt 0:00:00]} 4. O-O {[%emt 0:
00:02]} Nxe4 {[%emt 0:00:02]} 5. Re1 {[%emt 0:00:02]} Nd6 {[%emt 0:00:00]} 6.
Nxe5 {[%emt 0:00:02]} Nxe5 {[%emt 0:00:01]} 7. Rxe5+ {[%emt 0:00:03]} Be7 {
[%emt 0:00:01]} 8. Bf1 {[%emt 0:00:04]} O-O {[%emt 0:00:02]} 9. d4 {[%emt 0:00:
02]} Bf6 {[%emt 0:00:02]} 10. Re1 {[%emt 0:00:02]} Re8 {[%emt 0:00:00]} 11. c3
{[%emt 0:00:16]} Rxe1 {[%emt 0:00:03]} 12. Qxe1 {[%emt 0:00:01]} Ne8 {[%emt 0:
00:01]} 13. Bf4 {[%emt 0:00:04]} d5 {[%emt 0:00:03]} 14. Bd3 {[%emt 0:00:11]}
Be6 {[%emt 0:00:23]} 15. Nd2 {[%emt 0:00:06]} Nd6 {[%emt 0:00:01]} 16. Nf3 {
[%emt 0:00:04]} Bf5 {[%emt 0:00:08]} 17. Bxf5 {[%emt 0:00:13]} Nxf5 {[%emt 0:
00:01]} 18. Qe2 {[%emt 0:00:10]} c6 {[%emt 0:00:05]} 19. Re1 {[%emt 0:00:02]}
h6 {[%emt 0:00:09]} 20. Be5 {[%emt 0:00:30]} Bxe5 {[%emt 0:00:03]} 21. Nxe5 {
[%emt 0:00:09]} Nd6 {[%emt 0:00:04]} 22. Nd3 {[%emt 0:00:24]} Qa5 {[%emt 0:00:
09]} 23. Qe7 {[%emt 0:00:30]} Qd8 {[%emt 0:00:16]} 24. Nc5 {[%emt 0:00:13]} Rb8
{[%emt 0:00:49]} 25. Qxd8+ {[%emt 0:00:20]} Rxd8 {[%emt 0:00:01]} 26. Re7 {
[%emt 0:00:02]} Kf8 {[%emt 0:00:20]} 27. Rc7 {[%emt 0:00:13]} Re8 {[%emt 0:00:
08]} 28. Kf1 {[%emt 0:00:04]} Re7 {[%emt 0:00:00]} 29. Rxe7 {[%emt 0:00:03]}
Kxe7 {[%emt 0:00:01]} 30. Nd3 {[%emt 0:00:01]} Ke6 {[%emt 0:00:07]} 31. Ke2 {
[%emt 0:00:01]} Kf5 {[%emt 0:00:02]} 32. Ke3 {[%emt 0:00:04]} h5 {[%emt 0:00:
05]} 33. Nc5 {[%emt 0:00:02]} f6 {[%emt 0:00:03]} 34. h3 {[%emt 0:00:01]} g5 {
[%emt 0:00:02]} 35. b3 {[%emt 0:00:01]} h4 {[%emt 0:00:05]} 36. Kf3 {[%emt 0:
00:01]} b6 {[%emt 0:00:05]} 37. Nd3 {[%emt 0:00:02]} Nb5 {[%emt 0:00:03]} 38.
Nb4 {[%emt 0:00:04]} Nxc3 {[%emt 0:00:16]} 39. Nxc6 {[%emt 0:00:01]} a5 40. a4
Ne4 {[%emt 0:00:17]} 41. b4 {[%emt 0:00:04]} axb4 {[%emt 0:00:07]} 42. Nxb4 Nc3
43. Ke3 {[%emt 0:00:03]} Ke6 {[%emt 0:00:01]} 44. Kd3 {[%emt 0:00:04]} Nxa4 {
[%emt 0:00:00]} 45. Kc2 {[%emt 0:00:01]} b5 {[%emt 0:00:02]} 46. Na6 {[%emt 0:
00:01]} Kd6 {[%emt 0:00:02]} 47. Kb3 {[%emt 0:00:02]} Kc6 {[%emt 0:00:05]} 48.
Nb4+ Kd6 49. Na6 {[%emt 0:00:06]} Nb6 {[%emt 0:00:01]} 50. Kb4 {[%emt 0:00:00]}
Kc6 {[%emt 0:00:03]} 51. Nc5 {[%emt 0:00:01]} Nc4 {[%emt 0:00:01]} 52. Ne6 {
[%emt 0:00:06]} Nd6 {[%emt 0:00:03]} 53. Nd8+ {[%emt 0:00:01]} Kd7 {[%emt 0:00:
01]} 0-1

[Event "GER-ch Blitz 2019"]
[Site "Magdeburg"]
[Date "2019.05.25"]
[Round "15.12"]
[White "Hirneise, Jens"]
[Black "Schulze, Marc"]
[Result "1/2-1/2"]
[ECO "B35"]
[WhiteElo "2375"]
[BlackElo "2220"]
[Annotator "NA"]
[PlyCount "89"]
[EventDate "2019.05.25"]
[EventType "tourn"]
[EventCountry "GER"]
[Tiebreak "Number of wins+Number of black wins"]
[SourceTitle "playchess.com"]
[Source "ChessBase"]
[SourceQuality "1"]
[TimeControl "180+2"]

1. e4 {[%emt 0:00:00]} c5 {[%emt 0:00:00]} 2. Nf3 {[%emt 0:00:00]} g6 {[%emt 0:
00:00]} 3. d4 {[%emt 0:00:01]} cxd4 4. Nxd4 {[%emt 0:00:01]} Bg7 {[%emt 0:00:
01]} 5. Nc3 {[%emt 0:00:01]} Nc6 {[%emt 0:00:00]} 6. Be3 {[%emt 0:00:01]} Nf6 {
[%emt 0:00:02]} 7. Bc4 {[%emt 0:00:01]} Qa5 {[%emt 0:00:01]} 8. O-O {[%emt 0:
00:01]} O-O {[%emt 0:00:01]} 9. Bb3 {[%emt 0:00:01]} d6 {[%emt 0:00:03]} 10. h3
{[%emt 0:00:02]} Bd7 {[%emt 0:00:01]} 11. Re1 {[%emt 0:00:01]} Rac8 {[%emt 0:
00:03]} 12. f4 {[%emt 0:00:25]} Rfe8 {[%emt 0:00:20]} 13. f5 {[%emt 0:00:17]}
Ne5 {[%emt 0:00:06]} 14. Rf1 {[%emt 0:00:17]} Nc4 {[%emt 0:00:04]} 15. fxg6 {
[%emt 0:00:24]} hxg6 {[%emt 0:00:14]} 16. Bxc4 {[%emt 0:00:12]} Rxc4 {[%emt 0:
00:01]} 17. Qd3 {[%emt 0:00:07]} Rec8 {[%emt 0:00:06]} 18. Nb3 {[%emt 0:00:08]}
Qh5 {[%emt 0:00:22]} 19. Bd4 {[%emt 0:00:09]} b6 {[%emt 0:00:26]} 20. Bxf6 {
[%emt 0:00:13]} exf6 {[%emt 0:00:10]} 21. Nd5 {[%emt 0:00:02]} Qe5 {[%emt 0:00:
10]} 22. c3 {[%emt 0:00:18]} Rxe4 {[%emt 0:00:17]} 23. Nxf6+ {[%emt 0:00:19]}
Bxf6 {[%emt 0:00:01]} 24. Rxf6 {[%emt 0:00:01]} Re1+ {[%emt 0:00:12]} 25. Rxe1
{[%emt 0:00:10]} Qxe1+ {[%emt 0:00:01]} 26. Rf1 {[%emt 0:00:01]} Qe5 {[%emt 0:
00:10]} 27. Rd1 {[%emt 0:00:04]} Rc6 {[%emt 0:00:17]} 28. Nd4 {[%emt 0:00:01]}
Rc8 {[%emt 0:00:07]} 29. Nf3 {[%emt 0:00:01]} Qc5+ {[%emt 0:00:01]} 30. Kh1 {
[%emt 0:00:18]} Be6 {[%emt 0:00:03]} 31. Qxd6 {[%emt 0:00:11]} Qxd6 {[%emt 0:
00:18]} 32. Rxd6 {[%emt 0:00:01]} Bxa2 {[%emt 0:00:01]} 33. Rd7 {[%emt 0:00:01]
} a5 {[%emt 0:00:05]} 34. Rb7 {[%emt 0:00:05]} Rc6 {[%emt 0:00:07]} 35. Nd4 {
[%emt 0:00:06]} Rd6 {[%emt 0:00:02]} 36. Kh2 {[%emt 0:00:02]} Bd5 {[%emt 0:00:
01]} 37. Rb8+ {[%emt 0:00:03]} Kg7 {[%emt 0:00:02]} 38. Kg3 {[%emt 0:00:01]}
Rf6 {[%emt 0:00:05]} 39. Rd8 {[%emt 0:00:05]} Be4 {[%emt 0:00:03]} 40. Rd7 {
[%emt 0:00:03]} Bc6 {[%emt 0:00:03]} 41. Nxc6 {[%emt 0:00:02]} Rxc6 {[%emt 0:
00:01]} 42. Kf3 {[%emt 0:00:02]} Rc5 43. Rd4 {[%emt 0:00:04]} Rb5 {[%emt 0:00:
08]} 44. Rd2 {[%emt 0:00:01]} Kf6 {[%emt 0:00:03]} 45. Ke4 {Ke5+} 1/2-1/2

[Event "GER-ch Blitz 2019"]
[Site "Magdeburg"]
[Date "2019.05.25"]
[Round "15.13"]
[White "Zelbel, Patrick"]
[Black "Frischmann, Rick"]
[Result "1-0"]
[ECO "B22"]
[WhiteElo "2439"]
[BlackElo "2320"]
[Annotator "NA"]
[PlyCount "99"]
[EventDate "2019.05.25"]
[EventType "tourn"]
[EventCountry "GER"]
[Tiebreak "Number of wins+Number of black wins"]
[SourceTitle "playchess.com"]
[Source "ChessBase"]
[SourceQuality "1"]
[TimeControl "180+2"]

1. e4 {[%emt 0:00:00]} c5 {[%emt 0:00:00]} 2. c3 {[%emt 0:00:00]} Nf6 {[%emt 0:
00:00]} 3. e5 {[%emt 0:00:00]} Nd5 {[%emt 0:00:01]} 4. Bc4 {[%emt 0:00:00]} Nb6
{[%emt 0:00:03]} 5. Bb3 {[%emt 0:00:00]} d5 {[%emt 0:00:18]} 6. exd6 {[%emt 0:
00:01]} Qxd6 {[%emt 0:00:02]} 7. Nf3 {[%emt 0:00:01]} Nc6 {[%emt 0:00:04]} 8.
O-O {[%emt 0:00:04]} Be6 {[%emt 0:00:01]} 9. Bxe6 {[%emt 0:00:03]} Qxe6 {
[%emt 0:00:01]} 10. a4 {[%emt 0:00:01]} Qd7 {[%emt 0:00:25]} 11. a5 {[%emt 0:
00:22]} Nc8 {[%emt 0:00:07]} 12. a6 {[%emt 0:00:07]} b6 {[%emt 0:00:01]} 13.
Na3 {[%emt 0:00:06]} e6 {[%emt 0:00:03]} 14. Qe2 {[%emt 0:00:33]} Be7 {[%emt 0:
00:04]} 15. d4 {[%emt 0:00:04]} cxd4 16. Rd1 Bf6 {[%emt 0:00:22]} 17. Nb5 {
[%emt 0:00:05]} O-O {[%emt 0:00:08]} 18. Nbxd4 {[%emt 0:00:08]} Nxd4 {[%emt 0:
00:02]} 19. Nxd4 Bxd4 {[%emt 0:00:20]} 20. Rxd4 {[%emt 0:00:02]} Qc6 {[%emt 0:
00:00]} 21. Qc4 {[%emt 0:00:43]} Ne7 {[%emt 0:00:05]} 22. Bg5 {[%emt 0:00:12]}
Qxc4 {[%emt 0:00:09]} 23. Rxc4 {[%emt 0:00:01]} Nd5 {[%emt 0:00:01]} 24. Kf1 {
[%emt 0:00:16]} f6 {[%emt 0:00:07]} 25. Be3 {[%emt 0:00:05]} Rac8 {[%emt 0:00:
01]} 26. Rxc8 {[%emt 0:00:03]} Rxc8 {[%emt 0:00:02]} 27. Ke2 {[%emt 0:00:03]}
Kf7 {[%emt 0:00:04]} 28. Kd3 {[%emt 0:00:08]} e5 {[%emt 0:00:25]} 29. c4 {
[%emt 0:00:15]} Nc7 {[%emt 0:00:29]} 30. b4 {[%emt 0:00:03]} Ne6 {[%emt 0:00:
00]} 31. Kc3 {[%emt 0:00:06]} f5 {[%emt 0:00:01]} 32. Rd1 {[%emt 0:00:04]} Ke7
{[%emt 0:00:05]} 33. f3 {[%emt 0:00:03]} g5 {[%emt 0:00:05]} 34. Rd5 {[%emt 0:
00:01]} f4 {[%emt 0:00:10]} 35. Bf2 {[%emt 0:00:03]} e4 {[%emt 0:00:11]} 36.
fxe4 {[%emt 0:00:02]} h5 {[%emt 0:00:02]} 37. h4 {[%emt 0:00:05]} gxh4 {
[%emt 0:00:11]} 38. Rxh5 {[%emt 0:00:01]} Rg8 {[%emt 0:00:01]} 39. Bxh4+ {
[%emt 0:00:02]} Kd6 {[%emt 0:00:01]} 40. e5+ {[%emt 0:00:17]} Kc6 {[%emt 0:00:
02]} 41. b5+ {[%emt 0:00:01]} Kd7 {[%emt 0:00:01]} 42. Rh7+ {[%emt 0:00:01]}
Kc8 {[%emt 0:00:01]} 43. Rxa7 Rxg2 {[%emt 0:00:01]} 44. Re7 {[%emt 0:00:06]}
Nc5 {[%emt 0:00:00]} 45. a7 {[%emt 0:00:02]} Ra2 {[%emt 0:00:02]} 46. Bf2 {
[%emt 0:00:06]} Ne4+ {[%emt 0:00:01]} 47. Kb3 {[%emt 0:00:00]} Ra1 {[%emt 0:00:
10]} 48. Bxb6 {[%emt 0:00:02]} Nd2+ {[%emt 0:00:01]} 49. Kc3 {[%emt 0:00:02]}
f3 {[%emt 0:00:03]} 50. Kxd2 {[%emt 0:00:01]} 1-0

[Event "GER-ch Blitz 2019"]
[Site "Magdeburg"]
[Date "2019.05.25"]
[Round "15.14"]
[White "Zuyev, Igor"]
[Black "Kopylov, Daniel"]
[Result "1-0"]
[ECO "B23"]
[WhiteElo "2447"]
[BlackElo "2263"]
[Annotator "NA"]
[PlyCount "69"]
[EventDate "2019.05.25"]
[EventType "tourn"]
[EventCountry "GER"]
[Tiebreak "Number of wins+Number of black wins"]
[SourceTitle "playchess.com"]
[Source "ChessBase"]
[SourceQuality "1"]
[TimeControl "180+2"]

1. e4 {[%emt 0:00:00]} c5 {[%emt 0:00:00]} 2. Nc3 {[%emt 0:00:00]} a6 {[%emt 0:
00:00]} 3. g3 {[%emt 0:00:08]} b5 {[%emt 0:00:03]} 4. Nf3 {[%emt 0:00:06]} Bb7
{[%emt 0:00:02]} 5. Bg2 {[%emt 0:00:05]} b4 {[%emt 0:00:03]} 6. Ne2 {[%emt 0:
00:05]} Bxe4 {[%emt 0:00:09]} 7. d3 {[%emt 0:00:05]} Bb7 {[%emt 0:00:06]} 8. a3
{[%emt 0:00:04]} e6 {[%emt 0:00:16]} 9. axb4 {[%emt 0:00:05]} cxb4 {[%emt 0:00:
01]} 10. Bf4 {[%emt 0:00:08]} Nf6 {[%emt 0:00:04]} 11. c4 {[%emt 0:00:05]} bxc3
{[%emt 0:00:19]} 12. bxc3 {[%emt 0:00:04]} Be7 {[%emt 0:00:18]} 13. Rb1 {
[%emt 0:00:16]} Bc6 {[%emt 0:00:13]} 14. O-O {[%emt 0:00:06]} O-O {[%emt 0:00:
02]} 15. Ned4 {[%emt 0:00:04]} Bxf3 {[%emt 0:00:12]} 16. Bxf3 {[%emt 0:00:03]}
d5 {[%emt 0:00:10]} 17. Rxb8 {[%emt 0:00:07]} Rxb8 {[%emt 0:00:07]} 18. Nc6 {
[%emt 0:00:02]} Qb6 {[%emt 0:00:37]} 19. Nxe7+ {[%emt 0:00:07]} Kh8 {[%emt 0:
00:02]} 20. Bxb8 {[%emt 0:00:02]} Rxb8 {[%emt 0:00:18]} 21. Qa4 {[%emt 0:00:04]
} Qc5 {[%emt 0:00:06]} 22. Nc6 {[%emt 0:00:06]} Rc8 {[%emt 0:00:06]} 23. Ne5 {
[%emt 0:00:07]} Qxc3 {[%emt 0:00:14]} 24. Qxa6 {[%emt 0:00:07]} Rf8 {[%emt 0:
00:04]} 25. Qa1 {[%emt 0:00:09]} Qb4 {[%emt 0:00:05]} 26. Rb1 {[%emt 0:00:06]}
Qd2 {[%emt 0:00:03]} 27. Rb7 {[%emt 0:00:06]} Kg8 {[%emt 0:00:02]} 28. Kg2 {
[%emt 0:00:08]} Qg5 {[%emt 0:00:04]} 29. d4 {[%emt 0:00:05]} Ne8 {[%emt 0:00:
07]} 30. Qa7 {[%emt 0:00:08]} Nd6 {[%emt 0:00:01]} 31. Rb8 {[%emt 0:00:07]} Nc8
{[%emt 0:00:05]} 32. Rxc8 {[%emt 0:00:10]} Rxc8 {[%emt 0:00:02]} 33. Qxf7+ Kh8
34. Qxe6 {[%emt 0:00:17]} Rf8 {[%emt 0:00:01]} 35. Nf7+ {[%emt 0:00:09]} 1-0